Cogmind - Beta 15 @@@ ROGUE MODE // 2025.07.05 @ 14:50:01 Player: SuperSwiss Result: Self-destructed Performance ------------- Evolutions (4) 2000 Regions Visited (10) 2000 Robots Destroyed (154) 770 Value Destroyed (8570) 8570 Prototype IDs (10) 200 Alien Tech Used (0) 0 Bonus (4309) 4309 TOTAL SCORE: 17849 Bonus ------- High Alert Combat Kills 708 Follower Combat Kills 1001 Entered Garrisons 600 Used RIF Installer 2000 Cogmind --------- Core Integrity 793/850 Matter 1/300 Energy 284/290 System Corruption 0% Temperature Warm (131) Movement Treading (650) Ox6 Location -6/Factory Parts ------- > --- POWER (1) -------- Improved Deuterium Engine > --- PROPULSION (3) --- Armored Treads > --- UTILITY (8) ------ Huge Storage Unit Improved Sensor Array Improved Signal Interpreter Improved Heavy Armor Plating Relay Coupler [NC] (25) Relay Coupler [Brawler] (5) Relay Coupler [Duelist] (14) > --- WEAPON (3) ------- Heavy Linear Accelerator EMP Blaster > --- INVENTORY (25) --- Reinforced Deuterium Engine Seismic Detector Hardened Light Armor Plating Improved Light Armor Plating Advanced Shield Generator Relay Coupler [NC] (44) Relay Coupler [NC] (37) Relay Coupler [Swarmer] (31) Relay Coupler [Swarmer] (30) Relay Coupler [Swarmer] (29) Relay Coupler [Cutter] (27) Relay Coupler [Specialist] (25) Relay Coupler [Specialist] (22) Relay Coupler [Behemoth] (10) Coil Gun KE Penetrator Hypervelocity Coil Gun Hypervelocity Coil Gun Missile Launcher Scythe Peak State ------------ > --- POWER ------------ Improved Deuterium Engine > --- PROPULSION ------- Armored Treads Armored Huge Wheel > --- UTILITY ---------- Huge Storage Unit Improved Sensor Array Improved Signal Interpreter Improved Light Armor Plating Improved Heavy Armor Plating Relay Coupler [Swarmer] Relay Coupler [Brawler] > --- WEAPON ----------- Heavy Linear Accelerator Remote Datajack > --- INVENTORY -------- Reinforced Deuterium Engine Hardened Light Armor Plating Advanced Shield Generator Relay Coupler [NC] Relay Coupler [NC] Relay Coupler [NC] Relay Coupler [Swarmer] Relay Coupler [Swarmer] Relay Coupler [Swarmer] Relay Coupler [Cutter] Relay Coupler [Duelist] Relay Coupler [Specialist] Relay Coupler [Specialist] Relay Coupler [Behemoth] Coil Gun KE Penetrator Hypervelocity Coil Gun Hypervelocity Coil Gun EMP Blaster Missile Launcher Scythe [Rating: 68] Favorites ----------- Power Improved Deuterium Engine Engine Improved Deuterium Engine Propulsion Armored Treads Treads Armored Treads Leg Advanced VSS Leg Wheel Armored Wheel Utility Huge Storage Unit Device Seismic Detector Storage Huge Storage Unit Processor Advanced Visual Processing Unit Hackware Relay Coupler [Grunt] Protection Improved Heavy Armor Plating Weapon Hypervelocity Gauss Cannon Ballistic Gun Shotgun Ballistic Cannon Hypervelocity Gauss Cannon Launcher Missile Launcher Special Weapon Remote Datajack Impact Weapon Impact Mace Slashing Weapon Katana Special Melee Weapon Improved Datajack Build | -11 -10 -9 -8 -8 -8 -7 -7 -7 -7 -6 ------- Run | Yrd Mat Mat Mat Gar Mat Fac Gar Fac Gar Fac Slots Evolved 8 | . . 2 2 . . 2 . . . 2 Power . | . . . . . . . . . . . Propulsion 1 | . . . . . . 1 . . . . Utility 6 | . . 2 2 . . 1 . . . 1 Weapon 1 | . . . . . . . . . . 1 Parts Attached 118 | 7 7 13 13 13 14 7 18 10 9 7 Power 7 | 1 1 2 . . 1 1 . . 1 . Engine 7 | 1 1 2 . . 1 1 . . 1 . Core . | . . . . . . . . . . . Reactor . | . . . . . . . . . . . Propulsion 21 | 2 2 2 5 2 . 3 2 2 1 . Treads 12 | 1 1 2 5 . . 1 . 1 1 . Leg 1 | . . . . . . . 1 . . . Wheel 8 | 1 1 . . 2 . 2 1 1 . . Hover . | . . . . . . . . . . . Flight . | . . . . . . . . . . . Utility 57 | 2 2 5 5 6 9 2 11 5 5 5 Device 12 | 1 . 1 3 . 2 1 1 1 . 2 Storage 4 | 1 2 1 . . . . . . . . Processor 2 | . . 1 . . . . . 1 . . Hackware 24 | . . . . 2 7 . 6 3 4 2 Protection 15 | . . 2 2 4 . 1 4 . 1 1 Artifact . | . . . . . . . . . . . Weapon 33 | 2 2 4 3 5 4 1 5 3 2 2 Energy Gun . | . . . . . . . . . . . Energy Cannon . | . . . . . . . . . . . Ballistic Gun 21 | 2 1 4 3 2 3 . 3 1 2 . Ballistic Cannon 2 | . . . . . . . 1 . . 1 Launcher 2 | . . . . 1 . . . . . 1 Special Weapon 2 | . 1 . . . . 1 . . . . Impact Weapon 1 | . . . . . . . . 1 . . Slashing Weapon 3 | . . . . 1 . . 1 1 . . Piercing Weapon . | . . . . . . . . . . . Special Melee Weapon 2 | . . . . 1 1 . . . . . Unidentified Prototypes 5 | . . . . . 2 . 1 2 . . Parts Lost 39 | . 3 8 3 5 7 . 6 1 4 2 Power 4 | . 1 1 . . 1 . . . 1 . Propulsion 10 | . 1 3 1 . 2 . 2 . . 1 Utility 14 | . . 2 1 5 2 . 2 . 2 . Weapon 11 | . 1 2 1 . 2 . 2 1 1 1 Highest Loss Streak 4 | . 3 3 1 2 3 . 4 1 2 2 To Critical Strikes 1 | . . . . . . . . . 1 . Average Backups 19 | 3 8 12 14 22 23 22 24 23 22 21 Power 1 | . . . 1 1 1 2 1 1 . 1 Propulsion 1 | 1 2 2 2 2 2 2 . . . . Utility 9 | . 1 1 2 8 13 11 14 14 13 13 Weapon 7 | . 5 7 7 8 6 5 6 7 6 6 Tool/Special . | . . . . . . . . . . . Unused Backups 40 | . 1 3 3 8 1 2 10 . 1 11 Power 3 | . . . . . . 1 1 . . 1 Propulsion 1 | . . . . . . 1 . . . . Utility 27 | . 1 . 2 6 . . 8 . . 10 Weapon 9 | . . 3 1 2 1 . 1 . 1 . Tool/Special . | . . . . . . . . . . . Average Slot Usage (%) 92 | . 98 97 94 99 97 99 90 84 83 78 Engine 8 | . 13 10 9 9 8 7 7 7 6 6 Treads 10 | . 14 21 17 9 9 7 6 6 7 6 Wheel 7 | . 13 . . 8 9 14 9 7 7 5 Device 8 | . 13 12 17 12 . 7 7 6 4 5 Storage 8 | . 14 11 9 9 9 7 7 7 7 6 Processor 5 | . . 10 9 9 9 7 . . 7 6 Hackware 12 | . . . . 2 24 23 22 23 17 16 Protection 9 | . . 7 13 21 8 6 7 7 7 9 Ballistic Gun 10 | . 27 21 17 13 11 9 3 . 3 . Ballistic Cannon 2 | . . . . . . . 4 7 5 5 Slashing Weapon 2 | . . . . 3 . 3 4 3 3 1 Peak Build Rating 68 | 7 8 18 31 33 36 41 59 59 60 68 Average Rating 37 | 5 7 16 24 29 31 37 49 55 55 65 On Entrance 30 | . 7 8 18 27 32 32 40 59 58 54 Naked Turns . | . . . . . . . . . . . Heaviest Build 139 | 13 30 40 53 115 110 105 119 122 122 139 Greatest Support 56 | 16 20 40 56 40 12 24 24 28 28 28 Greatest Overweight (x) 11 | . 1 1 1 11 9 10 7 7 4 6 Average Overweight (x) 4 | . . . . 8 8 4 5 4 3 4 Largest Inventory Capacity 25 | 8 15 25 15 25 25 25 25 25 25 25 Average Capacity 21 | 7 13 15 15 24 25 25 25 25 25 25 Most Carried 25 | 5 12 15 15 25 25 25 25 25 25 24 Average Carried 20 | 3 8 12 14 22 23 22 24 24 24 21 Final Capacity 25 | 8 15 15 15 25 25 25 25 25 25 25 Final Carried 25 | 5 11 15 15 25 23 25 25 24 24 20 Class Distribution -------------------- 59% | Bothacker-Mutant 34% | Mutant Dominant Class ---------------- Mutant | -10/Materials Mutant | -9/Materials Mutant | -8/Materials Bothacker-Mutant | -8/Garrison Bothacker-Mutant | -8/Materials Bothacker-Mutant | -7/Factory Bothacker-Mutant | -7/Garrison Bothacker-Mutant | -7/Factory Bothacker-Mutant | -7/Garrison Botlord-Tank | -6/Factory Resources | -11 -10 -9 -8 -8 -8 -7 -7 -7 -7 -6 ----------- Run | Yrd Mat Mat Mat Gar Mat Fac Gar Fac Gar Fac Matter Collected 6362 | 306 350 823 757 947 588 215 922 565 872 17 Remotely 10 | . . . . . 10 . . . . . Salvage Created 5436 | 151 449 1378 927 736 420 62 627 159 463 64 Parts 342 | 12 41 88 50 53 34 3 27 8 22 4 Haulers Intercepted 2 | . 2 . . . . . . . . . Recyclers Shooed 2 | . . . . . 1 . . 1 . . Parts Field Recycled . | . . . . . . . . . . . Retrieved Matter . | . . . . . . . . . . . Parts Self-Destructed . | . . . . . . . . . . . Prevented . | . . . . . . . . . . . Kills | -11 -10 -9 -8 -8 -8 -7 -7 -7 -7 -6 ------- Run | Yrd Mat Mat Mat Gar Mat Fac Gar Fac Gar Fac Combat Hostiles Destroyed 131 | . 13 36 26 23 6 1 12 3 8 3 Melee 1 | . . . . . . . . . 1 . Guns 122 | . 13 36 26 22 6 1 11 2 5 . Cannons 7 | . . . . . . . 1 1 2 3 AOE 1 | . . . . 1 . . . . . . Classes Destroyed 16 | 2 3 6 2 2 1 . . . . . Worker 2 | . . 1 . . 1 . . . . . Builder 1 | . . . 1 . . . . . . . Tunneler 10 | 3 . 3 1 . 2 . . . . 1 Hauler 2 | . 2 . . . . . . . . . Recycler 2 | 1 . 1 . . . . . . . . Mechanic 1 | . . 1 . . . . . . . . Operator 2 | . . 1 . . 1 . . . . . Watcher 1 | . . 1 . . . . . . . . Swarmer 42 | . 7 13 9 12 1 . . . . . Cutter 1 | . . . . . 1 . . . . . Grunt 43 | . 6 13 12 4 . . 6 . 1 1 Brawler 3 | . . 1 1 . . . . . 1 . Duelist 3 | . . . 1 . . . 1 . . 1 Sentry 29 | . . 9 3 5 6 1 1 1 3 . Hunter 3 | . . . . 1 . . 1 . 1 . Programmer 9 | . . . . 1 . . 3 2 2 1 Best Kill Streak 6 | 4 3 6 5 4 2 1 4 1 1 2 Combat Bots Only 5 | . 3 5 5 4 2 1 4 1 1 2 Max Kills in Single Turn 3 | 1 1 3 2 2 1 1 1 1 1 1 Gunslinging 1 | . . 1 1 1 . . . . . . Exploded 1 | . . . . 1 . . . . . . Melee 1 | . . . . . . . . . 1 . Uniques/NPCs Destroyed . | . . . . . . . . . . . Combat | -11 -10 -9 -8 -8 -8 -7 -7 -7 -7 -6 -------- Run | Yrd Mat Mat Mat Gar Mat Fac Gar Fac Gar Fac Hostile Shots Fired 1013 | . 84 134 109 138 99 27 232 46 97 47 Missed 286 | . 16 34 29 38 27 13 65 17 32 15 Hits 727 | . 68 100 80 100 72 14 167 29 65 32 Melee 16 | . . . 1 4 . . 5 2 3 1 Projectile 711 | . 68 100 79 96 72 14 162 27 62 31 AOE 1 | . . . . . . . . 1 . . Critical Strikes 30 | . 1 4 5 7 4 . 4 1 1 3 Damage Taken 8791 | . 710 1190 851 1118 998 130 1822 438 861 673 Core 967 | . 93 221 82 129 136 . 174 27 48 57 Absorbed by Shields 710 | . . . 273 226 . . 155 . 56 . Regen/Repaired (Parts) 757 | . 145 205 232 . 175 . . . . . Core Remaining (%) 61 | 100 62 44 . . 36 . . . 64 . Volleys Fired 483 | 6 55 82 73 64 32 11 64 27 51 18 Largest 2 | 2 2 2 2 2 2 2 2 2 2 1 Hottest 100 | 40 100 100 48 59 56 51 79 86 86 70 Shots Fired 867 | 12 103 161 146 123 62 16 113 36 77 18 Gun 753 | 12 102 160 146 122 62 10 95 7 37 . Cannon 60 | . . . . . . . 5 16 27 12 Launcher 1 | . . . . 1 . . . . . . Special 53 | . 1 1 . . . 6 13 13 13 6 Kinetic 813 | 12 102 160 146 122 62 10 100 23 64 12 Thermal 2 | . 1 1 . . . . . . . . Explosive 1 | . . . . 1 . . . . . . Electromagnetic . | . . . . . . . . . . . Robot Hit Streak 38 | 10 15 11 13 9 11 8 38 5 14 6 Robot Miss Streak 8 | . 4 8 5 6 2 5 2 2 2 2 Penetration Max 1 | . . . . . . . . . . 1 Secondary Targets 18 | . 3 3 2 6 2 . 2 . . . Max Gunslinging Chain 1 | . 1 1 1 1 1 . 1 . . . Shots Hit Robots 635 | 10 56 127 110 74 65 10 95 21 52 15 Core Hits 268 | 5 24 72 63 34 15 4 28 5 15 3 Critical Kills 10 | . . 1 1 1 1 . 1 2 3 . Critical Parts Destroyed 24 | . 1 2 4 1 . . 3 1 12 . Critical Strikes 37 | . 1 3 5 2 1 . 5 3 17 . Destroy 37 | . 1 3 5 2 1 . 5 3 17 . Melee Attacks 163 | . . . . 46 22 6 33 19 34 3 Impact . | . . . . . . . . . . . Slashing 137 | . . . . 40 2 6 33 19 34 3 Piercing . | . . . . . . . . . . . Sneak Attacks 6 | . . . . . 4 . . 1 . 1 Combat Hostiles . | . . . . . . . . . . . Follow-up Attacks . | . . . . . . . . . . . Damage Inflicted 10568 | 132 723 2023 1751 1348 1086 159 1668 150 565 963 Guns 8896 | 132 723 2023 1750 1280 945 159 1619 33 232 . Cannons 1212 | . . . . . . . 49 54 271 838 Explosions 68 | . . . . 68 . . . . . . Melee 391 | . . . . . 141 . . 63 62 125 Ramming 1 | . . . 1 . . . . . . . Kinetic 10108 | 132 723 2023 1750 1280 945 159 1668 87 503 838 Thermal . | . . . . . . . . . . . Explosive 68 | . . . . 68 . . . . . . Electromagnetic . | . . . . . . . . . . . Impact . | . . . . . . . . . . . Slashing 391 | . . . . . 141 . . 63 62 125 Piercing . | . . . . . . . . . . . Highest Corruption 4 | . . . . 3 3 . 3 3 4 . Average Corruption 3 | . . . . 2 3 . 2 3 3 . Corruption Purged . | . . . . . . . . . . . Corruption Blocked . | . . . . . . . . . . . Effects 172 | . . . . 26 41 . 27 41 37 . Message Errors 32 | . . . . 5 12 . 2 7 6 . Matter Fused 46 | . . . . 6 5 . 10 11 14 . Heat Flow Errors 26 | . . . . 3 5 . 6 6 6 . Energy Discharges 20 | . . . . 3 3 . 4 6 4 . Parts Rejected 3 | . . . . 1 2 . . . . . Parts Fused 3 | . . . . . 1 . 1 1 . . Data Loss (minor) 21 | . . . . 2 7 . 3 6 3 . Data Loss (major) 5 | . . . . 4 . . . 1 . . Misfires 12 | . . . . 1 5 . 1 2 3 . Alerts 3 | . . . . 1 . . . 1 1 . Weapon Failures 1 | . . . . . 1 . . . . . Overload Shots . | . . . . . . . . . . . Overflow Damage 222 | . . . . . 33 . . 33 . 156 Projectiles 136 | . . . . . . . . . . 136 Explosions . | . . . . . . . . . . . Melee 86 | . . . . . 33 . . 33 . 20 Knockbacks 17 | . . . . . . . 1 1 4 11 Impact . | . . . . . . . . . . . Kinetic 14 | . . . . . . . 1 1 4 8 Secondary 3 | . . . . . . . . . . 3 Self-Inflicted Damage 75 | . . . . . . . . . 75 . Shots 1 | . . . . . . . . . 1 . Rammed 1 | . . . 1 . . . . . . . Targets Rammed 1 | . . . 1 . . . . . . . Kicked . | . . . . . . . . . . . Crushed . | . . . . . . . . . . . Highest Temperature 306 | 6 20 33 56 238 212 12 306 246 258 181 Average Temperature 52 | 6 4 9 14 56 48 6 59 60 76 78 Received Heat Transfer 2538 | . 240 381 373 291 351 45 421 63 142 231 Effects 1 | . . . . 1 . . . . . . Energy Bleed 1 | . . . . 1 . . . . . . Siege Activations . | . . . . . . . . . . . Martial Activations . | . . . . . . . . . . . Shielding Activations . | . . . . . . . . . . . Robots Disrupted . | . . . . . . . . . . . Combat Hostiles . | . . . . . . . . . . . Robots Corrupted . | . . . . . . . . . . . Combat Hostiles . | . . . . . . . . . . . Parts Fried 2 | . . . . . 2 . . . . . Impact Corruptions . | . . . . . . . . . . . Robots Melted . | . . . . . . . . . . . Combat Hostiles . | . . . . . . . . . . . Parts Melted . | . . . . . . . . . . . Heat Transferred . | . . . . . . . . . . . Parts Sabotaged . | . . . . . . . . . . . Parts Stolen . | . . . . . . . . . . . Parts Stripped . | . . . . . . . . . . . Power Chain Reactions . | . . . . . . . . . . . Alert | -11 -10 -9 -8 -8 -8 -7 -7 -7 -7 -6 ------- Run | Yrd Mat Mat Mat Gar Mat Fac Gar Fac Gar Fac Maximum Alert Level 5 | . . 2 1 5 3 . 5 3 5 3 Low Security (%) 20 | 100 100 29 8 3 . 100 21 . . . Level 1 23 | . . 66 91 5 22 . 9 23 2 . Level 2 26 | . . 4 . 33 42 . 25 55 39 47 Level 3 18 | . . . . 35 34 . 14 21 30 52 Level 4 8 | . . . . 17 . . 18 . 24 . Level 5 2 | . . . . 4 . . 10 . 2 . High Security . | . . . . . . . . . . . Max Security . | . . . . . . . . . . . Peak Influence 1805 | 15 96 405 352 1795 882 135 1805 947 1755 921 Initial 947 | . . 23 156 168 874 135 . 947 325 921 Average 543 | 2 22 257 274 846 592 23 739 551 889 714 Influence Increases 8428 | 20 427 1161 679 1697 396 98 1965 286 1530 169 Destroy 0b10 Robot/C 3240 | . 260 720 520 500 220 40 460 120 300 100 Destroy 0b10 Robot/NC 130 | 20 10 40 10 . 25 10 . 10 . 5 Destroy Leader 654 | . 64 212 110 30 82 24 30 52 40 10 Allied During Kill 265 | . . . . 6 15 8 41 65 92 38 Successful Hack 211 | . 16 67 9 14 21 12 28 . 30 14 Disable Machine 90 | . . . . . 30 . . 15 45 . Anti-Garrison Action 3150 | . . . . 1000 . . 1300 . 850 . Destroy Structure 373 | . 2 2 . 72 3 4 106 24 158 2 Lose Combat Pursuer 315 | . 75 120 30 75 . . . . 15 . Influence Decreases 7836 | 20 371 846 791 161 1892 397 160 1626 240 1332 Entered New Map 3256 | . . 33 215 91 921 164 . 858 140 834 Time Decay 3400 | 20 341 593 546 . 601 233 . 668 . 398 Lost Part 380 | . 30 70 30 50 70 . 60 10 40 20 Lost Ally 500 | . . . . 20 150 . 100 90 60 80 Purge Threat 300 | . . 150 . . 150 . . . . . Squads Dispatched 25 | . 1 7 4 . 3 1 . 5 . 4 Investigation 4 | . 1 1 . . 2 . . . . . Extermination 5 | . . . . . . 1 . 3 . 1 Reinforcement 8 | . . 6 1 . 1 . . . . . Assault 4 | . . . . . . . . 1 . 3 Garrison 4 | . . . 3 . . . . 1 . . Intercept . | . . . . . . . . . . . Searches Triggered . | . . . . . . . . . . . Construction Impeded . | . . . . . . . . . . . Haulers Reinforced . | . . . . . . . . . . . Active Scanning Responses . | . . . . . . . . . . . Cargo Convoy Interrupts . | . . . . . . . . . . . Stealth | -11 -10 -9 -8 -8 -8 -7 -7 -7 -7 -6 --------- Run | Yrd Mat Mat Mat Gar Mat Fac Gar Fac Gar Fac Distress Signals 5 | . . 1 1 . 3 . . . . . Communications Jammed . | . . . . . . . . . . . Distress Signals . | . . . . . . . . . . . Times Spotted 282 | . 23 66 44 27 35 5 28 17 20 17 Peak Tracking Total 8 | . 4 7 7 6 4 1 4 5 4 8 Tactical Retreats 14 | . 3 5 2 3 . . . . 1 . Traps | -11 -10 -9 -8 -8 -8 -7 -7 -7 -7 -6 ------- Run | Yrd Mat Mat Mat Gar Mat Fac Gar Fac Gar Fac Traps Triggered 23 | . 1 2 3 7 2 . 6 . 1 1 Indirectly . | . . . . . . . . . . . Trap Hack Attempts . | . . . . . . . . . . . Triggered . | . . . . . . . . . . . Disarmed . | . . . . . . . . . . . Reprogrammed . | . . . . . . . . . . . Reused . | . . . . . . . . . . . Traps Extracted . | . . . . . . . . . . . Installed . | . . . . . . . . . . . Triggered . | . . . . . . . . . . . Machines | -11 -10 -9 -8 -8 -8 -7 -7 -7 -7 -6 ---------- Run | Yrd Mat Mat Mat Gar Mat Fac Gar Fac Gar Fac Machines Disabled 26 | . . . . 8 2 . 6 1 9 . Max in Single Turn 1 | . . . . 1 1 . 1 1 1 . Garrison Access 1 | . . . . . . . . . . 1 Garrison Relay 18 | . . . . 8 . . 6 . 4 . Phase Generator 1 | . . . . . . . . . 1 . Machines Repaired . | . . . . . . . . . . . Machines Dismantled . | . . . . . . . . . . . Machines Sabotaged . | . . . . . . . . . . . Overloaded Fab Kills . | . . . . . . . . . . . Hacking | -11 -10 -9 -8 -8 -8 -7 -7 -7 -7 -6 --------- Run | Yrd Mat Mat Mat Gar Mat Fac Gar Fac Gar Fac Machines Accessed 50 | . 9 10 9 3 5 3 2 4 4 1 Terminals 39 | . 8 7 6 3 5 . 2 3 4 1 Fabricators . | . . . . . . . . . . . Repair Stations 6 | . 1 2 2 . . 1 . . . . Recycling Units 1 | . . 1 . . . . . . . . Scanalyzers 1 | . . . . . . 1 . . . . Garrison Access 3 | . . . 1 . . 1 . 1 . . Total Hacks 129 | . 29 24 29 5 17 7 3 7 6 2 Successful 63 | . 13 17 13 1 9 3 2 2 2 1 Failed 66 | . 16 7 16 4 8 4 1 5 4 1 Catastrophic 7 | . . . . 1 1 1 . 1 2 1 Database Lockouts . | . . . . . . . . . . . Manual 67 | . 19 14 13 4 10 . . 5 . 2 Terminals 96 | . 23 17 17 5 17 . 3 6 6 2 Fabricators . | . . . . . . . . . . . Repair Stations 26 | . 6 6 11 . . 3 . . . . Recycling Units 1 | . . 1 . . . . . . . . Scanalyzers 3 | . . . . . . 3 . . . . Garrison Access 3 | . . . 1 . . 1 . 1 . . Terminal Hacks 18 | . 4 5 1 . 4 . 2 . 2 . Robot Analysis 2 | . 1 1 . . . . . . . . Prototype ID Bank 3 | . 1 1 . . 1 . . . . . Emergency Access Points 1 | . . . . . . . . . 1 . Unreport Threat 2 | . . 1 . . 1 . . . . . Locate Traps 2 | . 1 1 . . . . . . . . Hauler Manifests 4 | . 1 1 1 . 1 . . . . . Zone Layout 1 | . . . . . 1 . . . . . Garrison Registry 1 | . . . . . . . 1 . . . Patrol Navigation 1 | . . . . . . . 1 . . . Security Stations 1 | . . . . . . . . . 1 . Fabricator Hacks . | . . . . . . . . . . . Repair Station Hacks 16 | . 4 4 7 . . 1 . . . . Scan Component 9 | . 2 2 4 . . 1 . . . . Repair 7 | . 2 2 3 . . . . . . . Recycling Unit Hacks 1 | . . 1 . . . . . . . . Retrieve Components 1 | . . 1 . . . . . . . . Scanalyzer 1 | . . . . . . 1 . . . . Insert Component 1 | . . . . . . 1 . . . . Garrison Access Hacks 3 | . . . 1 . . 1 . 1 . . Unlock Access 3 | . . . 1 . . 1 . 1 . . Unauthorized Hacks 24 | . 5 7 4 1 5 . . 1 . 1 Terminals 24 | . 5 7 4 1 5 . . 1 . 1 Botnet 24 | . 5 7 4 1 5 . . 1 . 1 Fabricators . | . . . . . . . . . . . Repair Stations . | . . . . . . . . . . . Recycling Units . | . . . . . . . . . . . Scanalyzers . | . . . . . . . . . . . Garrison Access . | . . . . . . . . . . . Data Cores Recovered . | . . . . . . . . . . . Used . | . . . . . . . . . . . Hacking Detections 39 | . 9 9 6 3 3 2 1 3 2 1 Full Trace Events 3 | . 1 . . . . . . . 2 . Feedback Events . | . . . . . . . . . . . Feedback Blocked . | . . . . . . . . . . . Robot Schematics Acquired . | . . . . . . . . . . . Robots Built . | . . . . . . . . . . . Authchips . | . . . . . . . . . . . Time . | . . . . . . . . . . . Total Robot Build Rating . | . . . . . . . . . . . Part Schematics Acquired . | . . . . . . . . . . . Parts Built . | . . . . . . . . . . . Authchips . | . . . . . . . . . . . Time . | . . . . . . . . . . . Total Part Build Rating . | . . . . . . . . . . . Parts Repaired 7 | . 2 2 3 . . . . . . . Time 177 | . 52 29 96 . . . . . . . Parts Recycled . | . . . . . . . . . . . Recycled Matter . | . . . . . . . . . . . Retrieved Matter . | . . . . . . . . . . . Retrieved Components 10 | . . 10 . . . . . . . . Parts Scanalyzed 1 | . . . . . . 1 . . . . Part Schematics Acquired . | . . . . . . . . . . . Parts Damaged . | . . . . . . . . . . . Bothacking | -11 -10 -9 -8 -8 -8 -7 -7 -7 -7 -6 ------------ Run | Yrd Mat Mat Mat Gar Mat Fac Gar Fac Gar Fac Used RIF Installer 4 | . . . . 1 . . 1 . 2 . Hotswap 1 | . . . . . . . 1 . . . Structural Interface 1 | . . . . . . . . . 1 . Autooverride 1 | . . . . . . . . . 1 . Robots Hacked 49 | . . . . 3 14 1 7 10 11 3 Non-combat 10 | . . . . . 2 1 . 5 1 1 Combat 39 | . . . . 3 12 . 7 5 10 2 Robot Hacks Applied 51 | . . . . 3 14 1 7 11 12 3 parse_system 1 | . . . . . . . . 1 . . no_distress 1 | . . . . . 1 . . . . . ignore_repairs 2 | . . . . . . . . 2 . . map_route 2 | . . . . . . 1 . 1 . . link_fov 1 | . . . . . . . . . . 1 overload_power 1 | . . . . . 1 . . . . . disable_weapons 2 | . . . . . . . . . 2 . go_dormant 2 | . . . . . 1 . . . 1 . formatsys_low 4 | . . . . . 1 . . 2 1 . formatsys_high 35 | . . . . 3 10 . 7 5 8 2 Relay Couplers Released 76 | . . . . 33 . . 24 . 16 3 Machine Destruction 73 | . . . . 33 . . 21 . 16 3 Programmers 3 | . . . . . . . 3 . . . Attached 24 | . . . . 2 7 . 6 3 4 2 Fabnet Peak Effective % . | . . . . . . . . . . . Robots Rewired . | . . . . . . . . . . . Allies Hacked 1 | . . . . . . . . 1 . . Hacks Repelled . | . . . . . . . . . . . Allies | -11 -10 -9 -8 -8 -8 -7 -7 -7 -7 -6 -------- Run | Yrd Mat Mat Mat Gar Mat Fac Gar Fac Gar Fac Total Allies 41 | . . . . 3 11 . 9 7 9 2 Largest Group 12 | . . . . 2 4 2 5 9 12 12 Highest-Rated Group 267 | . . . . 47 73 32 238 215 260 267 Highest-Rated Ally 95 | . . . . 25 29 16 95 34 32 32 Total Orders 93 | . . . . 2 6 6 12 28 31 8 STAY 45 | . . . . 1 2 3 7 14 15 3 ROAM 1 | . . . . . . . . . 1 . FOLLOW 37 | . . . . 1 3 3 5 14 10 1 AID 10 | . . . . . 1 . . . 5 4 Ally Attacks 178 | . . . . 10 46 18 25 32 33 14 Total Damage 3724 | . . . . 193 533 230 841 733 895 299 Kills 38 | . . . . 2 7 3 11 5 8 2 Allies Corrupted 3 | . . . . . . . . 2 1 . Allies Melted . | . . . . . . . . . . . Intel | -11 -10 -9 -8 -8 -8 -7 -7 -7 -7 -6 ------- Run | Yrd Mat Mat Mat Gar Mat Fac Gar Fac Gar Fac Active Infowar (turns) 19252 | 24 1471 2731 1563 2622 1921 979 3120 2383 1538 900 Optics 10201 | . . 2702 1563 2622 1921 979 414 . . . Sensors 817 | . . . . . . . . . . 817 Terrain 4014 | . . 2694 1320 . . . . . . . Seismic 12818 | 24 1471 420 243 2430 133 974 3119 2383 1538 83 Spoofing 1 | . . . . . . . 1 . . . Robot Analysis Total 2 | . 1 1 . . . . . . . . Derelict Logs Recovered . | . . . . . . . . . . . Drone Launches . | . . . . . . . . . . . Drone Recoveries . | . . . . . . . . . . . Exploration | -11 -10 -9 -8 -8 -8 -7 -7 -7 -7 -6 ------------- Run | Yrd Mat Mat Mat Gar Mat Fac Gar Fac Gar Fac Turns Passed 20614 | 98 1525 2731 1563 2622 1921 979 3178 2568 2472 957 Spaces Moved 9389 | 63 678 1318 532 886 785 560 1479 1312 1333 443 Core 1 | 1 . . . . . . . . . . Treads 2328 | . 408 1318 532 66 . . . 2 . 2 Legs . | . . . . . . . . . . . Wheels 7060 | 62 270 . . 820 785 560 1479 1310 1333 441 Hover . | . . . . . . . . . . . Flight . | . . . . . . . . . . . Fastest Speed 50 | 50 100 160 160 210 195 145 150 160 145 160 Average Speed 178 | 99 186 162 204 223 212 150 182 165 158 162 Slowest Speed 650 | 100 240 240 250 250 225 230 205 480 160 650 Overloaded Moves . | . . . . . . . . . . . Propulsion Burnouts . | . . . . . . . . . . . Robots Hopped . | . . . . . . . . . . . Potential Cave-ins . | . . . . . . . . . . . Cave-ins Triggered . | . . . . . . . . . . . Exploration Rate (%) 56 | 4 98 98 49 83 66 15 85 18 96 6 Regions Visited 10 Branch Regions . Pre-discovered Areas . | . . . . . . . . . . . Known Exits Taken 3 | . . . 1 . . 1 . 1 . . Unknown Exits Taken 4 | 1 1 1 . . 1 . . . . . Scrap Searched . | . . . . . . . . . . . Spaces Dug 26 | . 1 1 . 4 . 4 . 16 . . Terrain Destroyed 113 | . 1 1 . 19 . 4 . 16 71 1 Melee 24 | . . . . 4 . 4 . 16 . . Projectile 6 | . 1 1 . 3 . . . . . 1 AOE 83 | . . . . 12 . . . . 71 . Terrain Rammed . | . . . . . . . . . . . Walls Destroyed . | . . . . . . . . . . . Machines Disabled . | . . . . . . . . . . . Actions | -11 -10 -9 -8 -8 -8 -7 -7 -7 -7 -6 --------- Run | Yrd Mat Mat Mat Gar Mat Fac Gar Fac Gar Fac Total 12170 | 83 835 1739 861 1341 973 673 1813 1638 1562 652 Wait 1556 | 2 77 302 213 217 70 69 98 241 93 174 Move 9380 | 62 677 1317 532 885 784 559 1478 1311 1332 443 Hop . | . . . . . . . . . . . Pick Up 125 | 6 11 15 8 25 15 6 27 2 10 . Fast Attach 56 | 6 1 5 14 4 8 2 6 7 2 1 Attach 60 | 1 5 7 3 8 12 3 10 . 7 4 Detach 10 | . 1 . . 1 1 . 5 . . 2 Swap 152 | . 5 6 5 35 13 11 25 20 25 7 Drop 77 | . 3 5 12 8 8 6 21 8 6 . Fire 483 | 6 55 82 73 64 32 11 64 27 51 18 Melee 163 | . . . . 46 22 6 33 19 34 3 Ram . | . . . . . . . . . . . Kick . | . . . . . . . . . . . Crush 1 | . . . 1 . . . . . . . Escape Stasis 91 | . . . . 48 . . 43 . . . Rewire 16 | . . . . . 8 . 3 3 2 . Trap . | . . . . . . . . . . . Miscellaneous . | . . . . . . . . . . . Route ------- -11/Scrapyard -10/Materials (discovered 6 exits: *Mat x3 / [*Min x2] / [*Sub]) -9/Materials (discovered 4 exits: *Mat x3 / [*Min]) -8/Materials (discovered 3 exits: *Fac / [*Sto] / Gar) -8/Garrison (discovered 3 exits: *Mat x3) -8/Materials (discovered 3 exits: *Fac x3) -7/Factory (discovered 2 exits: *Low / Gar) -7/Garrison (discovered 3 exits: *Fac x3) -7/Factory (discovered 3 exits: *Low x2 / Gar) -7/Garrison (discovered 3 exits: *Fac x3) -6/Factory History --------- Turn | Location | Event 17 | -11/Scrapyard | Discovered new exit (range 15) 99 | -11/Scrapyard | Entered Materials 128 | -10/Materials | Discovered new exit (range 13) 289 | -10/Materials | Discovered new exit (range 13) 318 | -10/Materials | Build established: Mutant 368 | -10/Materials | Discovered new exit (range 7) 586 | -10/Materials | Lost 3 parts (1p1n1w) 728 | -10/Materials | Discovered new exit (range 8) 1348 | -10/Materials | Discovered new exit (range 6) 1372 | -10/Materials | Discovered new exit (range 7) 1506 | -10/Materials | Repaired Assault Rifle 1533 | -10/Materials | Repaired Ion Engine 1624 | -10/Materials | Entered another Materials area 1624 | -9/Materials | Evolved 2 slots: Utility x2 2111 | -9/Materials | Discovered new exit (range 8) 2247 | -9/Materials | Lost 3 parts (1p2n) 2621 | -9/Materials | Discovered new exit (range 19) 2969 | -9/Materials | Discovered new exit (range 13) 3173 | -9/Materials | Discovered new exit (range 19) 3200 | -9/Materials | Core integrity fell below 50% 3817 | -9/Materials | Repaired Lgt. Treads 4036 | -9/Materials | Repaired Rnf. Ion Engine 4355 | -9/Materials | Entered another Materials area 4355 | -8/Materials | Evolved 2 slots: Utility x2 4816 | -8/Materials | Discovered new exit (range 5) 5033 | -8/Materials | Garrison activated, responded to threat 5099 | -8/Materials | Discovered new exit (range 12) 5187 | -8/Materials | Repaired Shield Generator 5220 | -8/Materials | Repaired Shotgun 5819 | -8/Materials | Repaired Med. Armor Plating 5918 | -8/Materials | Identified exit to Garrison 5918 | -8/Materials | Entered Garrison 6070 | -8/Garrison | Triggered checkpoint 6131 | -8/Garrison | Garrison Relay disabled 6310 | -8/Garrison | Triggered checkpoint 6409 | -8/Garrison | Discovered new exit (range 17) 6431 | -8/Garrison | Triggered checkpoint 6492 | -8/Garrison | Garrison Relay disabled 6798 | -8/Garrison | Triggered checkpoint 6944 | -8/Garrison | Triggered checkpoint 6998 | -8/Garrison | Garrison Relay disabled 7095 | -8/Garrison | Installed Relay Interface Framework 7136 | -8/Garrison | Discovered new exit (range 11) 7230 | -8/Garrison | Triggered checkpoint 7397 | -8/Garrison | Build established: Bothacker-Mutant 7520 | -8/Garrison | Triggered checkpoint 7553 | -8/Garrison | Garrison Relay disabled 7614 | -8/Garrison | Discovered new exit (range 12) 8000 | -8/Garrison | Triggered checkpoint 8314 | -8/Garrison | Garrison Relay disabled 8397 | -8/Garrison | Garrison Relay disabled 8410 | -8/Garrison | Garrison Relay disabled 8419 | -8/Garrison | Garrison Relay disabled 8540 | -8/Garrison | Entered Materials 8540 | -8/Materials | Accompanied by 2 allies 8926 | -8/Materials | Discovered new exit (range 4) 9532 | -8/Materials | Core integrity fell below 50% 9592 | -8/Materials | Lost 3 parts (1n1u1w) 9785 | -8/Materials | Discovered new exit (range 12) 10081 | -8/Materials | Discovered new exit (range 11) 10182 | -8/Materials | Lost 3 allies 10461 | -8/Materials | Entered Factory 10461 | -7/Factory | Accompanied by 2 allies 10461 | -7/Factory | Evolved 2 slots: Propulsion x1, Utility x1 10579 | -7/Factory | Discovered new exit (range 16) 11427 | -7/Factory | Identified exit to Garrison 11440 | -7/Factory | Entered Garrison 11440 | -7/Garrison | Accompanied by 2 allies 11452 | -7/Garrison | Triggered checkpoint 11486 | -7/Garrison | Garrison Relay disabled 11626 | -7/Garrison | Triggered checkpoint 11656 | -7/Garrison | Triggered checkpoint 11796 | -7/Garrison | Discovered new exit (range 13) 11838 | -7/Garrison | Triggered checkpoint 11876 | -7/Garrison | Garrison Relay disabled 12238 | -7/Garrison | Triggered checkpoint 12288 | -7/Garrison | Garrison Relay disabled 12343 | -7/Garrison | Discovered new exit (range 8) 12410 | -7/Garrison | Discovered new exit (range 41) 12410 | -7/Garrison | Discovered new exit (range 26) 12410 | -7/Garrison | Discovered new exit (range 39) 12469 | -7/Garrison | Expanded RIF knowledge: Hotswap 12612 | -7/Garrison | P-60 Hacker assimilated allied Guardian 4a 12689 | -7/Garrison | Lost 4 parts (2n2w) 12808 | -7/Garrison | Found embedded Infiltrators 13182 | -7/Garrison | Garrison Relay disabled 13267 | -7/Garrison | Garrison Relay disabled 13880 | -7/Garrison | Triggered checkpoint 14122 | -7/Garrison | Garrison Relay disabled 14618 | -7/Garrison | Entered Factory 14618 | -7/Factory | Accompanied by 5 allies 15120 | -7/Factory | Discovered new exit (range 6) 16218 | -7/Factory | First assault squad dispatched 16840 | -7/Factory | Discovered new exit (range 11) 17002 | -7/Factory | Identified exit to Lower Caves 17172 | -7/Factory | Identified exit to Garrison 17186 | -7/Factory | Entered Garrison 17186 | -7/Garrison | Accompanied by 7 allies 17456 | -7/Garrison | H-XX Assembler disabled 17621 | -7/Garrison | Garrison Relay disabled 17726 | -7/Garrison | Triggered checkpoint 17926 | -7/Garrison | Triggered checkpoint 18227 | -7/Garrison | Garrison Relay disabled 18270 | -7/Garrison | Discovered new exit (range 13) 18289 | -7/Garrison | Identified exit to Factory 18315 | -7/Garrison | Learned Factory security intel 18462 | -7/Garrison | Triggered checkpoint 18578 | -7/Garrison | Discovered exit to Factory (range 5) 18680 | -7/Garrison | Garrison Relay disabled 18896 | -7/Garrison | Triggered checkpoint 19219 | -7/Garrison | Garrison Relay disabled 19255 | -7/Garrison | Expanded RIF knowledge: Structural Interface 19309 | -7/Garrison | Phase Generator disabled 19340 | -7/Garrison | Triggered checkpoint 19364 | -7/Garrison | Discovered exit to Factory (range 11) 19394 | -7/Garrison | Expanded RIF knowledge: Autooverride 19580 | -7/Garrison | Triggered checkpoint 19658 | -7/Garrison | Entered Factory 19658 | -6/Factory | Accompanied by 10 allies 19658 | -6/Factory | Evolved 2 slots: Utility x1, Weapon x1 19688 | -6/Factory | Build established: Botlord-Mutant 20023 | -6/Factory | Build established: Botlord-Tank 20358 | -6/Factory | First assault squad dispatched 20615 | -6/Factory | Self-destructed Last Messages --------------- Zone 8M. 20589_ Destroyed Plasma Rifle. 20589_ G-67 Veteran knocked back. 20594_ G-50 Soldier knocked back. 20594_ Gladiator 4a destroyed. 20596_ G-67 Veteran knocked back. 20599_ G-50 Soldier knocked back. 20601_ Slug penetrates G-50 Soldier. 20601_ G-50 Soldier destroyed. 20601_ Destroyed Imp. Deuterium Engine. 20601_ L-41 Fighter knocked back. 20604_ Destroyed Microactuators. 20604_ L-41 Fighter knocked back. 20606_ Slug penetrates L-41 Fighter. 20606_ Destroyed Carbon-fiber Leg. 20606_ L-41 Fighter knocked back. 20609_ G-67 Veteran knocked back. 20611_ Destroyed Carbon-fiber Leg. 20611_ Destroyed Axe. 20611_ L-41 Fighter destroyed. Map ----- +----------------------------------------------------+ | ????????????""" + #???????????????????? | | ????????????""" # #???????????????????? | | ?????????# """ # #???????????????????? | | ?????????# # #???????????????????? | | ?????????# # ^#???????????????????? | | ?????????# + #########???????????? | | ?????????############## ??????????? | | ?????????????? ?## ??????????? | | ?????????????"" """ # ! ??????????? | | ?????????????R """ # ??????????? | | ?????????????"" """ + """"""" ??????????? | | ?????????????"" # """"""" ???????????? | | ???????????# # """"""" ???????????? | | ???????????# ?### """"""" ?????????? | | ???????????# ???# ?????????? | | ???????????########????# g ?????????? | | ????????????????????####+##### ?????????? | | ????????????????????# # ??????????? | | ????????????????????# ! # ############### | | ????????????????????# # # | | ????????????????????# """ # # | | ????????????????????# """ # #m | | ????????????????????# "S # # """"""" | | ????????????????????# """ # + """"""" | | ????????????????????#%%"" # # """"""" | | ????????????????????#mg @ # # """"""" | | ?#######################;#####k # | | ?# " =% %% # A | | ?# "%" = ##########/#### | | ?# " %!%! % #! #### | | ?# ! # ! # | | ?# =!! # " + | | ?# ######### #=#### * # "G" # | | ?# # %=/ #?# /%! "# " ####### | | ?# # = = #?# "%# ##????? | | ?# # ! #?# "#########?????? | | ?# # #?# k #??#######????? | | ?# + """ """ #?# #?? #????? | | ?# # """ """ #?# #? #????? | | ?# # """ """ #?######## #? !!!#????? | | ?# # #????????# # !!!#????? | | ?####### """ """ #????????# # !! #????? | | ???????# """ """ #????????# + #????? | | ???????# """ """ #????????# # #????? | | ???????# #????????# # #????? | | ???????##############????????# +? [ #????? | | ??????????????????????????####+#+############????? | | ??????????????????????????# #?????????? | | ??????????????????????????# """" """" #?????????? | | ??????????????????????????# """" """" ??????????? | +----------------------------------------------------+ Best States ------------- Heat Dissipation 37 Energy Generation 16 Energy Capacity 290 Matter Stores 300 Matter Capacity 300 Sight Range 20 Robot Scan Range 15 Terrain Scan Range 16 Terrain Scan Density 10 Armor Coverage 750 Resistance: KI 20 Evasion (%) 40 Recoil Reduction 2 Relay Coupler Types 4 Relay Coupler Value 94 Item Schematics ----------------- None Robot Schematics ------------------ None Fabricated ------------ Nothing Repaired ---------- Assault Rifle | 9% | -10/Materials Ion Engine | 10% | -10/Materials Lgt. Treads | 19% | -9/Materials Rnf. Ion Engine | 34% | -9/Materials Shield Generator | 10% | -8/Materials Shotgun | 1% | -8/Materials Med. Armor Plating | 23% | -8/Materials Alien Tech Used ----------------- None Achievements -------------- Gun Specialist Infiltrator Challenges ------------ None Game ------ Seed AlphaArmoredInverter Manual? 0 Play Time 03:31:39 Cumulative 114.2 hours Start 2025.07.05 @ 07:39:13 End 2025.07.05 @ 14:50:01 Sessions 9 Manual Loads 0 Difficulty Rogue Special Mode None Game No. 94 Rogue 91 Adventurer 0 Explorer 3 Win Type - Total 1 Types 1/0/0/0/0/0/0/0/0/0 Lore% 24 Gallery% 46 Achievement% 44 Wizard Run 0 Options --------- Layout 0 ASCII 0 Keyboard 0 Movement Numpad Keybinds 0 Fullscreen 0 Font 16/SmallcapsGlow Map View 88x55 Zoom Use 0% Tactical HUD 1 Map Filters NONE Filters NONE Steam 1 RUN: 778df768-3102-41c1-a43b-4b39e59be88f